Cogmind - Beta 13 @@@ ROGUE MODE // 2024.06.19 @ 21:30:07 Player: Dami Result: Self-destructed Performance ------------- Evolutions (2) 1000 Regions Visited (5) 1000 Robots Destroyed (32) 160 Value Destroyed (700) 700 Prototype IDs (0) 0 Alien Tech Used (0) 0 Bonus (283) 283 TOTAL SCORE: 3143 Bonus ------- Aligned with FarCom 300 Friendly Fire -17 Cogmind --------- Core Integrity 484/550 Matter 198/300 Energy 140/140 System Corruption 0% Temperature Cool (0) Movement Walking (130) Location -8/Materials Parts ------- > --- POWER (2) -------- Light Deuterium Engine > --- PROPULSION (2) --- Improved Titanium Leg Improved Titanium Leg > --- UTILITY (3) ------ Coolant Injector Small Storage Unit Launcher Guidance Computer > --- WEAPON (4) ------- Beam Cannon Beam Cannon Minigun High-powered Shotgun > --- INVENTORY (8) ---- Reinforced Deuterium Engine Improved Titanium Leg Improved Titanium Leg Improved Heat Sink Improved Heat Sink Matter Filter ECM Suite Peak State ------------ > --- POWER ------------ Ion Engine Light Deuterium Engine > --- PROPULSION ------- Improved Titanium Leg Improved Titanium Leg > --- UTILITY ---------- Coolant Injector Small Storage Unit Launcher Guidance Computer > --- WEAPON ----------- Beam Cannon Beam Cannon Minigun High-powered Shotgun > --- INVENTORY -------- Reinforced Deuterium Engine Improved Titanium Leg Improved Titanium Leg Improved Heat Sink Improved Heat Sink Matter Filter ECM Suite [Rating: 31] Favorites ----------- Power Ion Engine Engine Ion Engine Propulsion Aluminum Leg Treads Light Treads Leg Aluminum Leg Utility Small Storage Unit Device Coolant Injector Storage Small Storage Unit Processor Launcher Guidance Computer Protection Weapon Shielding Weapon Assault Rifle Energy Gun EM Pulse Gun Energy Cannon Beam Cannon Ballistic Gun Assault Rifle Launcher Rocket Launcher Build | -11 -10 -10 -10 -9 -8 ------- Run | Yrd Mat Min Exi Min Mat Slots Evolved 4 | . . . . . 4 Power 1 | . . . . . 1 Propulsion . | . . . . . . Utility 1 | . . . . . 1 Weapon 2 | . . . . . 2 Parts Attached 31 | 6 9 . 2 4 10 Power 7 | 1 2 . 2 1 1 Engine 7 | 1 2 . 2 1 1 Core . | . . . . . . Reactor . | . . . . . . Propulsion 10 | 2 4 . . . 4 Treads 2 | 2 . . . . . Leg 8 | . 4 . . . 4 Wheel . | . . . . . . Hover . | . . . . . . Flight . | . . . . . . Utility 5 | 1 2 . . 1 1 Device 1 | . . . . 1 . Storage 1 | 1 . . . . . Processor 2 | . 1 . . . 1 Hackware . | . . . . . . Protection 1 | . 1 . . . . Artifact . | . . . . . . Weapon 9 | 2 1 . . 2 4 Energy Gun 2 | . 1 . . . 1 Energy Cannon 2 | . . . . 2 . Ballistic Gun 4 | 2 . . . . 2 Ballistic Cannon . | . . . . . . Launcher 1 | . . . . . 1 Special Weapon . | . . . . . . Impact Weapon . | . . . . . . Slashing Weapon . | . . . . . . Piercing Weapon . | . . . . . . Special Melee Weapon . | . . . . . . Unidentified Prototypes . | . . . . . . Parts Lost 4 | . 2 . . . 2 Power 2 | . 1 . . . 1 Propulsion . | . . . . . . Utility . | . . . . . . Weapon 2 | . 1 . . . 1 Highest Loss Streak 2 | . 1 . . . 2 To Critical Strikes . | . . . . . . Average Slot Usage (%) 97 | . 95 100 99 99 97 Engine 14 | . 14 14 13 14 17 Treads 2 | . 6 . . . . Leg 21 | . 17 28 28 28 17 Device 2 | . . . . 4 9 Storage 12 | . 14 14 14 14 9 Processor 5 | . 8 . . . 9 Protection 7 | . 4 14 14 8 . Energy Gun 10 | . 12 14 14 3 4 Energy Cannon 5 | . . . . 20 18 Ballistic Gun 11 | . 15 14 14 3 4 Launcher 1 | . . . . . 7 Naked Turns . | . . . . . . Heaviest Build 30 | 14 15 15 15 17 30 Greatest Support 40 | 40 40 20 20 20 40 Greatest Overweight (x) 9 | 2 1 . . . 9 Average Overweight (x) . | . . . . . . Largest Inventory Capacity 8 | 8 8 8 8 8 8 Average Capacity 7 | 6 8 8 8 8 8 Most Carried 8 | 3 8 8 8 8 8 Average Carried 6 | 1 5 8 7 7 7 Final Capacity 8 | 8 8 8 8 8 8 Final Carried 8 | 2 8 8 8 8 7 Class Distribution -------------------- 76% | Mutant 23% | Skirmisher Dominant Class ---------------- Mutant | -10/Materials Mutant | -10/Mines Mutant | -10/Exiles Mutant | -9/Mines Skirmisher | -8/Materials Resources | -11 -10 -10 -10 -9 -8 ----------- Run | Yrd Mat Min Exi Min Mat Matter Collected 962 | 245 394 . . 109 214 Remotely . | . . . . . . Salvage Created 906 | . 531 . . 15 360 Parts 83 | . 43 . . 1 39 Haulers Intercepted 2 | . 2 . . . . Recyclers Shooed . | . . . . . . Parts Field Recycled . | . . . . . . Retrieved Matter . | . . . . . . Parts Self-Destructed . | . . . . . . Prevented . | . . . . . . Kills | -11 -10 -10 -10 -9 -8 ------- Run | Yrd Mat Min Exi Min Mat Combat Hostiles Destroyed 18 | . 9 . . 1 8 Guns 12 | . 9 . . . 3 Cannons 4 | . . . . . 4 AOE 1 | . . . . . 1 Classes Destroyed 10 | . 6 . . 1 3 Worker 2 | . 1 . . . 1 Builder 5 | . 2 . . . 3 Tunneler 1 | . . . . . 1 Hauler 2 | . 2 . . . . Operator 1 | . . . . . 1 Watcher 3 | . 3 . . . . Swarmer 6 | . 3 . . . 3 Grunt 6 | . 6 . . . . Sentry 5 | . . . . . 5 Demolisher 1 | . . . . 1 . Best Kill Streak 9 | . 4 . . 1 9 Combat Bots Only 3 | . 3 . . 1 2 Max Kills in Single Turn 2 | . 2 . . 1 2 Gunslinging . | . . . . . . Exploded 1 | . . . . . 1 Melee . | . . . . . . Uniques/NPCs Destroyed . | . . . . . . Combat | -11 -10 -10 -10 -9 -8 -------- Run | Yrd Mat Min Exi Min Mat Hostile Shots Fired 136 | . 76 . . 3 57 Missed 47 | . 26 . . . 21 Damage Taken 1457 | . 589 . . 140 728 Core 156 | . 74 . . 16 66 Absorbed by Shields . | . . . . . . Redirected to Shielding 14 | . . . . 14 . Core Remaining (%) 82 | 100 . . . 64 . Volleys Fired 87 | . 56 . 8 2 21 Largest 4 | . 2 . 2 2 4 Hottest 233 | . 60 . 60 120 233 Shots Fired 211 | . 112 . 16 4 79 Gun 153 | . 112 . 16 2 23 Cannon 44 | . . . . 2 42 Launcher 14 | . . . . . 14 Special . | . . . . . . Kinetic 124 | . 101 . 8 1 14 Thermal 53 | . . . . 2 51 Explosive 14 | . . . . . 14 Electromagnetic 20 | . 11 . 8 1 . Robot Hit Streak 7 | . 7 . . 2 7 Robot Miss Streak 9 | . 9 . . 1 4 Penetration Max . | . . . . . . Secondary Targets 2 | . 2 . . . . Max Gunslinging Chain 1 | . 1 . . . . Shots Hit Robots 96 | . 59 . . 2 35 Core Hits 58 | . 30 . . . 28 Critical Kills 1 | . . . . 1 . Critical Parts Destroyed . | . . . . . . Critical Strikes 1 | . . . . 1 . Meltdown 1 | . . . . 1 . Melee Attacks . | . . . . . . Impact . | . . . . . . Slashing . | . . . . . . Piercing . | . . . . . . Sneak Attacks . | . . . . . . Combat Hostiles . | . . . . . . Follow-up Attacks . | . . . . . . Damage Inflicted 2050 | . 968 . . 31 1051 Guns 1113 | . 866 . . 14 233 Cannons 490 | . . . . 17 473 Explosions 406 | . 67 . . . 339 Melee . | . . . . . . Ramming 41 | . 35 . . . 6 Kinetic 880 | . 742 . . 14 124 Thermal 640 | . 41 . . 17 582 Explosive 339 | . . . . . 339 Electromagnetic 150 | . 150 . . . . Impact . | . . . . . . Slashing . | . . . . . . Piercing . | . . . . . . Highest Corruption 1 | . 1 1 1 1 . Average Corruption 1 | . 1 1 1 1 . Corruption Purged . | . . . . . . Corruption Blocked . | . . . . . . Effects 24 | . 11 3 10 . . Message Errors 5 | . 1 1 3 . . Matter Fused 6 | . 2 . 4 . . Heat Flow Errors 3 | . 3 . . . . Data Loss (minor) 5 | . 3 2 . . . Data Loss (major) 3 | . . . 3 . . Misfires 1 | . 1 . . . . Alerts 1 | . 1 . . . . Overload Shots . | . . . . . . Overflow Damage . | . . . . . . Projectiles . | . . . . . . Explosions . | . . . . . . Melee . | . . . . . . Knockbacks 1 | . 1 . . . . Impact 1 | . 1 . . . . Kinetic . | . . . . . . Secondary . | . . . . . . Self-Inflicted Damage 102 | . 83 . . . 19 Shots 4 | . 3 . . . 1 Rammed 4 | . 4 . . . . Targets Rammed 14 | . 13 . . . 1 Kicked 10 | . 9 . . . 1 Crushed . | . . . . . . Highest Temperature 219 | . 219 . . 62 197 Average Temperature 94 | . 69 . . 32 102 Received Heat Transfer 306 | . 171 . . . 135 Siege Activations . | . . . . . . Robots Corrupted . | . . . . . . Combat Hostiles . | . . . . . . Parts Fried . | . . . . . . Impact Corruptions . | . . . . . . Robots Melted 1 | . . . . 1 . Combat Hostiles 1 | . . . . 1 . Parts Melted 1 | . . . . . 1 Heat Transferred 1386 | . 100 . . 37 1249 Parts Sabotaged . | . . . . . . Parts Stolen . | . . . . . . Parts Stripped . | . . . . . . Power Chain Reactions 2 | . 2 . . . . Alert | -11 -10 -10 -10 -9 -8 ------- Run | Yrd Mat Min Exi Min Mat Peak Influence 234 | . 234 8 . 30 202 Initial 11 | . . 8 . . 11 Average 45 | . 50 8 . 21 52 Maximum Alert Level 1 | . 1 . . . 1 Low Security (%) 89 | 100 88 100 . 100 86 Level 1 10 | . 11 . . . 13 Level 2 . | . . . . . . Level 3 . | . . . . . . Level 4 . | . . . . . . Level 5 . | . . . . . . High Security . | . . . . . . Max Security . | . . . . . . Squads Dispatched 6 | . 1 . . . 5 Investigation 1 | . . . . . 1 Extermination . | . . . . . . Reinforcement 2 | . 1 . . . 1 Assault . | . . . . . . Garrison 3 | . . . . . 3 Intercept . | . . . . . . Searches Triggered . | . . . . . . Construction Impeded . | . . . . . . Haulers Reinforced . | . . . . . . Active Scanning Responses . | . . . . . . Cargo Convoy Interrupts . | . . . . . . Stealth | -11 -10 -10 -10 -9 -8 --------- Run | Yrd Mat Min Exi Min Mat Distress Signals 8 | . 3 . . . 5 Communications Jammed . | . . . . . . Distress Signals . | . . . . . . Times Spotted 38 | . 16 . . 1 21 Peak Tracking Total 5 | . 5 . . 1 3 Tactical Retreats 1 | . . . . . 1 Traps | -11 -10 -10 -10 -9 -8 ------- Run | Yrd Mat Min Exi Min Mat Traps Triggered 2 | . 2 . . . . Indirectly . | . . . . . . Trap Hack Attempts . | . . . . . . Triggered . | . . . . . . Disarmed . | . . . . . . Reprogrammed . | . . . . . . Reused . | . . . . . . Traps Extracted . | . . . . . . Installed . | . . . . . . Triggered . | . . . . . . Machines | -11 -10 -10 -10 -9 -8 ---------- Run | Yrd Mat Min Exi Min Mat Machines Disabled 3 | . 2 . . . 1 Max in Single Turn 2 | . 2 . . . 1 Machines Repaired . | . . . . . . Machines Dismantled . | . . . . . . Machines Sabotaged . | . . . . . . Overloaded Fab Kills . | . . . . . . Hacking | -11 -10 -10 -10 -9 -8 --------- Run | Yrd Mat Min Exi Min Mat Machines Accessed 9 | . 4 . 2 1 2 Terminals 4 | . 3 . . . 1 Fabricators . | . . . . . . Repair Stations 1 | . 1 . . . . Recycling Units . | . . . . . . Scanalyzers . | . . . . . . Garrison Access 1 | . . . . . 1 Total Hacks 44 | . 5 . 32 1 6 Successful 38 | . 3 . 32 1 2 Failed 6 | . 2 . . . 4 Catastrophic 1 | . . . . . 1 Database Lockouts . | . . . . . . Manual . | . . . . . . Terminals 6 | . 4 . . . 2 Fabricators . | . . . . . . Repair Stations 1 | . 1 . . . . Recycling Units . | . . . . . . Scanalyzers . | . . . . . . Garrison Access 4 | . . . . . 4 Terminal Hacks 37 | . 3 . 32 1 1 Record 32 | . . . 32 . . Open Door 1 | . . . . 1 . Emergency Access Points 1 | . . . . . 1 Alert Level 1 | . 1 . . . . Locate Traps 2 | . 2 . . . . Fabricator Hacks . | . . . . . . Repair Station Hacks . | . . . . . . Recycling Unit Hacks . | . . . . . . Scanalyzer . | . . . . . . Garrison Access Hacks 1 | . . . . . 1 Unlock Access 1 | . . . . . 1 Unauthorized Hacks . | . . . . . . Terminals . | . . . . . . Fabricators . | . . . . . . Repair Stations . | . . . . . . Recycling Units . | . . . . . . Scanalyzers . | . . . . . . Garrison Access . | . . . . . . Data Cores Recovered . | . . . . . . Used . | . . . . . . Hacking Detections 3 | . 1 . . . 2 Full Trace Events . | . . . . . . Feedback Events . | . . . . . . Feedback Blocked . | . . . . . . Robot Schematics Acquired . | . . . . . . Robots Built . | . . . . . . Authchips . | . . . . . . Time . | . . . . . . Total Robot Build Rating . | . . . . . . Part Schematics Acquired . | . . . . . . Parts Built . | . . . . . . Authchips . | . . . . . . Time . | . . . . . . Total Part Build Rating . | . . . . . . Parts Repaired . | . . . . . . Time . | . . . . . . Parts Recycled . | . . . . . . Recycled Matter . | . . . . . . Retrieved Matter . | . . . . . . Retrieved Components . | . . . . . . Parts Scanalyzed . | . . . . . . Part Schematics Acquired . | . . . . . . Parts Damaged . | . . . . . . Bothacking | -11 -10 -10 -10 -9 -8 ------------ Run | Yrd Mat Min Exi Min Mat Used RIF Installer . | . . . . . . Robots Hacked . | . . . . . . Non-combat . | . . . . . . Combat . | . . . . . . Robot Hacks Applied . | . . . . . . Relay Couplers Released . | . . . . . . Fabnet Peak Effective % . | . . . . . . Robots Rewired . | . . . . . . Allies Hacked . | . . . . . . Hacks Repelled . | . . . . . . Allies | -11 -10 -10 -10 -9 -8 -------- Run | Yrd Mat Min Exi Min Mat Total Allies . | . . . . . . Largest Group . | . . . . . . Highest-Rated Group . | . . . . . . Highest-Rated Ally . | . . . . . . Total Orders . | . . . . . . Ally Attacks . | . . . . . . Total Damage . | . . . . . . Kills . | . . . . . . Allies Corrupted . | . . . . . . Allies Melted . | . . . . . . Intel | -11 -10 -10 -10 -9 -8 ------- Run | Yrd Mat Min Exi Min Mat Robot Analysis Total . | . . . . . . Derelict Logs Recovered 1 | . . 1 . . . Drone Launches . | . . . . . . Drone Recoveries . | . . . . . . Exploration | -11 -10 -10 -10 -9 -8 ------------- Run | Yrd Mat Min Exi Min Mat Turns Passed 4700 | 86 1724 243 1352 183 1112 Spaces Moved 3218 | 52 1050 203 1092 136 685 Core 20 | 12 . . . . 8 Treads 186 | 40 146 . . . . Legs 3012 | . 904 203 1092 136 677 Wheels . | . . . . . . Hover . | . . . . . . Flight . | . . . . . . Fastest Speed 50 | 50 120 120 120 120 130 Average Speed 132 | 144 141 120 120 120 145 Slowest Speed 500 | 160 190 120 120 120 500 Overloaded Moves . | . . . . . . Propulsion Burnouts . | . . . . . . Robots Hopped . | . . . . . . Cave-ins Triggered . | . . . . . . Exploration Rate (%) 53 | 4 96 46 93 21 58 Regions Visited 5 Branch Regions 3 Pre-discovered Areas 1 | . . . 1 . . Known Exits Taken 1 | . 1 . . . . Unknown Exits Taken 4 | 1 . 1 1 1 . Scrap Searched . | . . . . . . Spaces Dug . | . . . . . . Terrain Destroyed 110 | . 3 . . . 107 Melee . | . . . . . . Projectile . | . . . . . . AOE 110 | . 3 . . . 107 Terrain Rammed . | . . . . . . Walls Destroyed . | . . . . . . Machines Disabled . | . . . . . . Actions | -11 -10 -10 -10 -9 -8 --------- Run | Yrd Mat Min Exi Min Mat Total 3460 | 61 1173 202 1119 155 750 Wait 54 | . 29 . 8 2 15 Move 3213 | 51 1049 202 1091 135 685 Hop . | . . . . . . Pick Up 25 | 4 9 . 1 4 7 Fast Attach 18 | 4 5 . 1 2 6 Attach 12 | 2 3 . 1 2 4 Detach 10 | . 4 . 2 2 2 Swap 1 | . 1 . . . . Drop 21 | . 4 . 2 6 9 Fire 87 | . 56 . 8 2 21 Melee . | . . . . . . Ram . | . . . . . . Kick 10 | . 9 . . . 1 Crush 4 | . 4 . . . . Escape Stasis . | . . . . . . Rewire 5 | . . . 5 . . Trap . | . . . . . . Miscellaneous . | . . . . . . Route ------- -11/Scrapyard -10/Materials (discovered 3 exits: [*Mat x2] / *Min) -10/Mines (discovered 2 exits: [*Mat] / *Exi) -10/Exiles (discovered 2 exits: *Min x2) -9/Mines -8/Materials (discovered 6 exits: *Fac x3 / [*Sto x2] / Gar) History --------- Turn | Location | Event 17 | -11/Scrapyard | Discovered new exit (range 16) 87 | -11/Scrapyard | Entered Materials 326 | -10/Materials | Build established: Mutant 452 | -10/Materials | Discovered new exit (range 13) 548 | -10/Materials | Identified exit to Mines 650 | -10/Materials | Discovered new exit (range 8) 1356 | -10/Materials | Discovered new exit (range 14) 1811 | -10/Materials | Entered Mines 1906 | -10/Mines | Learned 4 Materials zone layouts 2006 | -10/Mines | Discovered new exit (range 12) 2045 | -10/Mines | Deemed a non-threat by the Exiles lab entrance 2047 | -10/Mines | Discovered new exit (range 5) 2054 | -10/Mines | Entered Exiles 2132 | -10/Exiles | Discovered new exit (range 14) 2187 | -10/Exiles | Met 8R-AWN 2209 | -10/Exiles | Met EX-HEX 2267 | -10/Exiles | Met EX-DEC 2347 | -10/Exiles | Discovered new exit (range 12) 2484 | -10/Exiles | Learned location of Zion (-7) 2533 | -10/Exiles | Met EX-BIN 2568 | -10/Exiles | Aligned with FarCom system 2569 | -10/Exiles | Given EX-Vault access code 2817 | -10/Exiles | Visited The Gauntlet 3406 | -10/Exiles | Entered Mines 3432 | -9/Mines | Found a hidden stash of uninstalled traps 3435 | -9/Mines | Assembled infested the area 3440 | -9/Mines | Assisted by a Guerilla fighting off Assembled 3465 | -9/Mines | Discovered new exit (range 12) 3511 | -9/Mines | Met a Derelict who couldn't figure out how to use a Trap Extractor 3589 | -9/Mines | Entered Materials 3589 | -8/Materials | Evolved 4 slots: Power x1, Utility x1, Weapon x2 3590 | -8/Materials | Identified exit to Factory 3596 | -8/Materials | Discovered new exit (range 12) 3692 | -8/Materials | Garrison activated, responded to threat 3915 | -8/Materials | Build established: Skirmisher 3926 | -8/Materials | Met 7R-MNS 3999 | -8/Materials | Discovered exit to Factory (range 11) 4115 | -8/Materials | Identified exit to Garrison 4296 | -8/Materials | Discovered exit to Factory (range 12) 4366 | -8/Materials | Discovered new exit (range 15) 4701 | -8/Materials | Self-destructed Last Messages --------------- U-05 Engineer lays Concrete. U-05 Engineer builds a Wall. K-01 Serf collects debris. U-05 Engineer lays Concrete. 9C-ANA(g) destroyed. U-05 Engineer lays Concrete. U-05 Engineer builds a Wall. U-05 Engineer lays Concrete. Rocket Launcher destroyed. Beam Rifle melted. Y-45 Defender destroyed. The unstable cave ceiling collapses. Hvy. Assault Rifle crushed. Acquired 46 matter. Knocked back. Ion Engine destroyed. Acquired 5 matter. Penetrated by Slug. Slug penetrates Wall. K-01 Serf collects debris. Map ----- +----------------------------------------------------+ | #?????????????????# / #??????????#? | | T #?????????????????# # #??????????#? | | ## #?????????????????# # #??????????#? | | ### #########??????????# # #??????????#? | | #?# # /# ?????????# # #??????????#? | | #?# / T = # ????????# ########+#??????????#? | | ### # =# "????????# #??????# #??????????#? | | + #####+### "????????# ######## #??????????#? | | ####+##### #?# """ "T" ## #???"????????????????? | | # # #?# """ ## ## "T" #?????????????? | | # % # # # ## ## #???????????? | | # [ # ##+### k # #??????????? | | # # [ # = #??????????? | | # " ! % # [% #???????????? | | # # %! g % # ! #??????????? | | # # # ######g # # #???????????? | | # # ###??#; ##???????????????????? | | # # # ## ###?;% #????????????????????? | | ########## # #?# #????????????????????? | | ??????# ## # #?# #????????????????????? | | ??????# ## # ### #????????????????????? | | ??????# ## # ##; % #????????????????????? | | ??????# ## # ### #????????????????????? | | ?######### # #?# #????????????????????? | | ?# # # #?# #????????????????????? | | ?# + # #?#@ #????????????????????? | | ?# #^ # #?# #????????????????????? | | ?######### # #?# #?????? ???????????? | | ######??## # #?# #????# ???????????? | | #??# ###+####### #????# ???????????? | | """ #### #?# ????# ???????????? | | """ + ### #???# ???????????? | | """ #### T ???? ???????????? | | #??# #####+###? ##???# #??????????? | | """ #??# #????????? #????# #??????????? | | """ #??# #?????????######????# ###????????? | | """ #??# #??????????#######??# % #????????? | | #??# #??????????# # ?????????? | | ######??# #??????????# = # ?####????? | | #???# #??????????# =%*# % ### ###### | | "" #???# #??????? ??# #= | | "" #???# #??????? ???? " +%* [ | | "" #???# #??????? ??? # [= * | | #???# #??????#+#?????" # ###### =##+# | | #####???# #??????# #????? # #?# # #= | | ####### #??????# #????? ????# #?# # #= ! | | #?????## ############ ##?# # # | | ########?????# #??### # / | | #????????????# #????# # // | | ## ####?????????# %! #????# # / | +----------------------------------------------------+ Best States ------------- Heat Dissipation 31 Coolant Potential 65 Energy Generation 19 Energy Capacity 290 Matter Stores 300 Matter Capacity 300 Sight Range 16 Terrain Scan Density 10 Weapon Shielding 33 Evasion (%) 55 Launcher Accuracy 20 Recoil Reduction 2 Item Schematics ----------------- None Robot Schematics ------------------ None Fabricated ------------ Nothing Alien Tech Used ----------------- None Achievements -------------- Librarian Tourist Challenges ------------ None Game ------ Seed ForceEfficiencyInterpreter Manual? 0 Play Time 00:41:16 Cumulative 2.8 hours Start 2024.04.03 @ 13:26:20 End 2024.06.19 @ 21:30:07 Sessions 5 Manual Loads 0 Difficulty Rogue Special Mode None Game No. 6 Rogue 6 Adventurer 0 Explorer 0 Win Type - Total 0 Types 0/0/0/0/0/0/0/0/0 Lore% 7 Gallery% 7 Achievement% 7 Wizard Run 0 Options --------- Layout 2 ASCII 0 Keyboard 1 Movement Numpad Keybinds 0 Fullscreen 2 Font 32/SmallcapsGlow Map View 77x44 Zoom Use 0% Tactical HUD 0 Map Filters NONE Filters NONE Steam 1 RUN: 453b2705-dc1e-48da-bee1-04068a40fa09